fUSD/lending_fUSD_20241105
["ID","MTS","AMOUNT","RATE_DAILY","PERIOD"]
[341345647,1730818315797,-500.0,0.00030958,2]
[341345648,1730818315806,-543.17,0.00030958,2]
[341345649,1730818315815,-621.32,0.00030958,2]
[341345650,1730818315824,-3230.76,0.00030958,2]
[341345651,1730818315833,-862.17,0.00030958,2]
[341345652,1730818315842,-851.69,0.00030958,2]
[341345653,1730818315854,-601.12660049,0.00030958,2]
[341345654,1730818315864,-517.2,0.00030958,2]
[341345655,1730818315872,-2720.75,0.00030958,2]
[341345656,1730818315881,-638.18,0.00030958,2]
[341345657,1730818315891,-947.11,0.00030958,2]
[341345658,1730818315901,-3625.83,0.00030958,2]
[341345659,1730818315910,-2072.98,0.00030958,2]
[341345660,1730818315919,-2681.47,0.00030958,2]
[341345661,1730818315928,-1864.35,0.00030958,2]
[341345662,1730818315937,-738.0,0.00030958,2]
[341345663,1730818315946,-500.0,0.00030958,2]
[341345664,1730818315956,-879.91,0.00030958,2]
[341345665,1730818315965,-1021.21,0.00030958,2]
[341345666,1730818315974,-500.0,0.00030958,2]
[341345667,1730818315983,-959.37,0.00031232,2]
[341345668,1730818315992,-642.42,0.00031232,2]
[341345669,1730818316002,-156.105828,0.00031232,2]
[341345670,1730818316011,-500.0,0.00031232,2]
[341345671,1730818316021,-500.0,0.00031232,2]
[341345672,1730818316030,-2202.5,0.00031232,2]
[341345673,1730818316039,-1276.84,0.00031232,2]
[341345674,1730818316048,-500.0,0.00031232,2]
[341345675,1730818316059,-500.0,0.00031232,2]
[341345676,1730818316072,-500.0,0.00031232,2]
[341345677,1730818316082,-524.62,0.00031232,2]
[341345678,1730818316092,-500.0,0.00031232,2]
[341345679,1730818316104,-500.0,0.00031232,2]
[341345680,1730818316113,-500.0,0.00031232,2]
[341345681,1730818316123,-1325.09,0.00031232,2]
[341345682,1730818316132,-652.16,0.00031232,2]
[341345683,1730818316142,-500.0,0.00031232,2]
[341345684,1730818316151,-1213.8,0.00031232,2]
[341345685,1730818316160,-543.65,0.00031232,2]
[341345686,1730818316170,-500.0,0.00031232,2]
[341345687,1730818316179,-710.18,0.00031232,2]
[341345688,1730818316189,-596.5,0.00031232,2]
[341345689,1730818316198,-500.0,0.00031232,2]
[341345690,1730818316207,-500.0,0.00031232,2]
[341345691,1730818316217,-500.0,0.00031232,2]
[341345692,1730818316226,-1031.26,0.00031232,2]
[341345693,1730818316236,-1810.02,0.00031232,2]
[341345694,1730818316246,-500.0,0.00031232,2]
[341345695,1730818316256,-340.34,0.00031232,2]
[341345696,1730818316269,-1006.45,0.00031232,2]
[341345697,1730818316278,-1532.81,0.00031232,2]
[341345698,1730818316289,-500.0,0.00031232,2]
[341345699,1730818316299,-1172.46,0.00031232,2]
[341345700,1730818316309,-950.66,0.00031232,2]
[341345701,1730818316321,-566.27,0.00031232,2]
[341345702,1730818316331,-1150.28,0.00031232,2]
[341345703,1730818316341,-1053.05,0.00031232,2]
[341345704,1730818316354,-1385.21,0.00031232,2]
[341345705,1730818316364,-2449.39,0.00031232,2]
[341345706,1730818316373,-551.76,0.00031232,2]
[341345707,1730818316383,-1152.78,0.00031232,2]
[341345708,1730818316395,-505.75,0.00031232,2]
[341345709,1730818316404,-1169.16,0.00031232,2]
[341345710,1730818316413,-500.0,0.00031232,2]
[341345711,1730818316423,-1981.15,0.00031232,2]
[341345712,1730818316433,-500.0,0.00031232,2]
[341345713,1730818316443,-1122.88,0.00031232,2]
[341345714,1730818316452,-667.7,0.00031232,2]
[341345715,1730818316461,-765.3,0.00031232,2]
[341345716,1730818316471,-1179.4,0.00031232,2]
[341345717,1730818316480,-745.83,0.00031232,2]
[341345718,1730818316490,-1138.75,0.00031232,2]
[341345719,1730818316499,-500.0,0.00031232,2]
[341345720,1730818316508,-500.0,0.00031232,2]
[341345721,1730818316518,-1546.36,0.00031232,2]
[341345722,1730818316528,-1799.17,0.00031232,2]
[341345723,1730818316538,-500.0,0.00031232,2]
[341345724,1730818316547,-918.0,0.00031232,2]
[341345725,1730818316558,-882.74,0.00031232,2]
[341345726,1730818316567,-715.96,0.00031232,2]
[341345727,1730818316579,-1464.77,0.00031232,2]
[341345728,1730818316590,-629.6871062,0.00031232,2]
[341345729,1730818316600,-500.0,0.00031232,2]
[341345730,1730818316616,-821.25,0.00031232,2]
[341345731,1730818316625,-561.05,0.00031232,2]
[341345732,1730818316635,-2488.35,0.00031232,2]
[341345733,1730818316644,-1277.43,0.00031232,2]
[341345734,1730818316653,-789.16,0.00031232,2]
[341345735,1730818316662,-1983.46,0.00031232,2]
[341345736,1730818316671,-1319.52,0.00031232,2]
[341345737,1730818316681,-770.21,0.00031232,2]
[341345738,1730818316690,-933.5,0.00031232,2]
[341345739,1730818316699,-1484.81,0.00031232,2]
[341345740,1730818316708,-893.08,0.00031232,2]
[341345741,1730818316717,-769.6,0.00031232,2]
[341345742,1730818316727,-2097.16,0.00031232,2]
[341345743,1730818316738,-706.56,0.00031232,2]
[341345744,1730818316752,-626.22,0.00031232,2]
[341345745,1730818316764,-1129.24,0.00031232,2]
[341345746,1730818316775,-1181.37,0.00031232,2]
[341345747,1730818316785,-1105.93,0.00031232,2]
[341345748,1730818316794,-1772.13,0.00031232,2]
[341345749,1730818316804,-1949.19,0.00031232,2]
[341345750,1730818316814,-500.0,0.00031232,2]
[341345751,1730818316823,-2148.83,0.00031232,2]
[341345752,1730818316832,-899.14,0.00031232,2]
[341345753,1730818316842,-500.0,0.00031232,2]
[341345754,1730818316855,-2651.17,0.00031232,2]
[341345755,1730818316864,-729.55,0.00031232,2]
[341345756,1730818316873,-891.77,0.00031232,2]
[341345757,1730818316883,-151.0,0.00031232,7]
[341345758,1730818316892,-1337.92,0.00031232,2]
[341345759,1730818316902,-500.0,0.00031232,2]
[341345760,1730818316911,-151.0,0.00031232,7]
[341345761,1730818316921,-181.27834711,0.00031232,2]
[341345762,1730818316930,-2000.0,0.00031232,2]
[341345763,1730818316939,-1628.51,0.00031232,2]
[341345764,1730818316948,-1340.76,0.00031232,2]
[341345765,1730818316957,-1205.1,0.00031232,2]
[341345766,1730818316966,-671.93,0.00031232,2]
[341345767,1730818316976,-2625.61,0.00031232,2]
[341345768,1730818316985,-500.0,0.00031232,2]
[341345769,1730818316994,-1052.87,0.00031232,2]
[341345770,1730818317003,-862.96,0.00031232,2]
[341345771,1730818317012,-1134.95,0.00031232,2]
[341345772,1730818317022,-500.0,0.00031232,2]
[341345773,1730818317031,-518.28885494,0.00031232,2]
[341345774,1730818317042,-713.84,0.00031232,2]
[341345775,1730818317052,-1190.36,0.00031232,2]
[341345776,1730818317064,-500.0,0.00031232,2]
[341345777,1730818317075,-500.0,0.00031232,2]
[341345778,1730818317086,-561.87,0.00031232,2]
[341345779,1730818317097,-1258.85,0.00031232,2]
[341345780,1730818317112,-708.32,0.00031232,2]
[341345781,1730818317123,-719.74,0.00031232,2]
[341345782,1730818317134,-530.24,0.00031232,2]
[341345783,1730818317151,-533.96,0.00031232,2]
[341345784,1730818317162,-1233.24,0.00031232,2]
[341345785,1730818317175,-1568.32,0.00031232,2]
[341345786,1730818317187,-1593.99,0.00031232,2]
[341345787,1730818317197,-500.0,0.00031232,2]
[341345788,1730818317208,-1606.8,0.00031232,2]
[341345789,1730818317218,-1114.96,0.00031232,2]
[341345790,1730818317229,-1019.34,0.00031232,2]
[341345791,1730818317239,-1345.66,0.00031232,2]
[341345792,1730818317254,-573.0,0.00031232,2]
[341345793,1730818317264,-500.0,0.00031232,2]
[341345794,1730818317277,-1308.07,0.00031232,2]
[341345795,1730818317287,-500.0,0.00031232,2]
[341345796,1730818317297,-997.78,0.00031232,2]
[341345797,1730818317306,-510.23,0.00031232,2]
[341345798,1730818317316,-619.16,0.00031232,2]
[341345799,1730818317328,-500.0,0.00031232,2]
[341345800,1730818317338,-654.14,0.00031232,2]
[341345801,1730818317347,-500.0,0.00031232,2]
[341345802,1730818317361,-500.0,0.00031232,2]
[341345803,1730818317371,-593.18445338,0.00031232,2]
[341345804,1730818317381,-220.71394448,0.00031232,2]
[341345805,1730818317390,-500.0,0.00031232,2]
[341345806,1730818317400,-859.18,0.00031232,2]
[341345807,1730818317409,-685.48,0.00031232,2]
[341345808,1730818317419,-500.0,0.00031232,2]
[341345809,1730818317429,-804.47,0.00031232,2]
[341345810,1730818317439,-500.0,0.00031232,2]
[341345811,1730818317449,-500.0,0.00031232,2]
[341345812,1730818317458,-1490.72,0.00031232,2]
[341345813,1730818317467,-500.0,0.00031232,2]
[341345814,1730818317477,-2778.32,0.00031232,2]
[341345815,1730818317486,-1058.06,0.00031232,2]
[341345816,1730818317495,-991.64,0.00031232,2]
[341345817,1730818317505,-512.56,0.00031232,2]
[341345818,1730818317514,-10560.64,0.00031232,2]
[341345819,1730818317523,-1286.83,0.00031232,2]
[341345820,1730818317532,-500.0,0.00031232,2]
[341345821,1730818317541,-500.0,0.00031232,2]
[341345822,1730818317550,-574.51,0.00031232,2]
[341345823,1730818317559,-882.25,0.00031232,2]
[341345824,1730818317569,-242.67593264,0.00031232,2]
[341345825,1730818317578,-2024.06,0.00031232,2]
[341345826,1730818317588,-500.0,0.00031232,2]
[341345827,1730818317598,-2459.63,0.00031232,2]
[341345828,1730818317610,-522.65,0.00031232,2]
[341345829,1730818317619,-539.9,0.00031232,2]
[341345830,1730818317629,-832.24,0.00031232,2]
[341345831,1730818317638,-577.06,0.00031232,2]
[341345832,1730818317647,-528.68,0.00031232,2]
[341345833,1730818317657,-1759.85,0.00031232,2]
[341345834,1730818317666,-500.0,0.00031232,2]
[341345835,1730818317677,-1143.05,0.00031232,2]
[341345836,1730818317686,-2134.71,0.00031232,2]
[341345837,1730818317695,-384.4421306,0.00031232,2]
[341345838,1730818317704,-1180.55,0.00031232,2]
[341345839,1730818317714,-669.82,0.00031232,2]
[341345840,1730818317723,-500.0,0.00031232,2]
[341345841,1730818317734,-500.0,0.00031232,2]
[341345842,1730818317743,-2610.73,0.00031232,2]
[341345843,1730818317754,-500.0,0.00031232,2]
[341345844,1730818317763,-812.75,0.00031232,2]
[341345845,1730818317773,-2008.76,0.00031232,2]
[341345846,1730818317783,-500.0,0.00031232,2]
[341345847,1730818317792,-500.0,0.00031232,2]
[341345848,1730818317802,-839.69,0.00031232,2]
[341345849,1730818317811,-2029.5,0.00031232,2]
[341345850,1730818317820,-500.0,0.00031232,2]
[341345851,1730818317829,-500.0,0.00031232,2]
[341345852,1730818317838,-828.58,0.00031232,2]
[341345853,1730818317847,-500.0,0.00031232,2]
[341345854,1730818317859,-500.0,0.00031232,2]
[341345855,1730818317868,-500.0,0.00031232,2]
[341345856,1730818317877,-1273.27,0.00031232,2]
[341345857,1730818317887,-500.0,0.00031232,2]
[341345858,1730818317896,-590.4,0.00031232,2]
[341345859,1730818317904,-1210.7,0.00031232,2]
[341345860,1730818317913,-1114.81,0.00031232,2]
[341345861,1730818317923,-2727.4,0.00031232,2]
[341345862,1730818317932,-12148.46,0.00031232,2]
[341345863,1730818317941,-2229.83,0.00031232,2]
[341345864,1730818317951,-511.42,0.00031232,2]
[341345865,1730818317960,-500.0,0.00031232,2]
[341345866,1730818317969,-500.0,0.00031232,2]
[341345867,1730818317979,-2291.13,0.00031232,2]
[341345868,1730818317989,-997.05,0.00031232,2]
[341345869,1730818317998,-800.14,0.00031232,2]
[341345870,1730818318008,-1162.23,0.00031232,2]
[341345871,1730818318017,-3281.13,0.00031232,2]
[341345872,1730818318027,-618.36,0.00031232,2]
[341345873,1730818318036,-20453.09,0.00031232,2]
[341345874,1730818318045,-839.45,0.00031232,2]
[341345875,1730818318055,-694.1,0.00031232,2]
[341345876,1730818318065,-500.0,0.00031232,2]
[341345877,1730818318074,-1597.24,0.00031232,2]
[341345878,1730818318084,-4040.37,0.00031232,2]
[341345879,1730818318093,-500.0,0.00031232,2]
[341345880,1730818318102,-8586.16,0.00031232,2]
[341345881,1730818318113,-500.0,0.00031232,2]
[341345882,1730818318123,-500.0,0.00031232,2]
[341345883,1730818318132,-2313.73,0.00031232,2]
[341345884,1730818318142,-1073.79,0.00031232,2]
[341345885,1730818318151,-500.0,0.00031232,2]
[341345886,1730818318161,-558.66,0.00031232,2]
[341345887,1730818318171,-5774.21,0.00031232,2]
[341345888,1730818318180,-500.0,0.00031232,2]
[341345889,1730818318190,-1029.49,0.00031232,2]
[341345890,1730818318199,-673.5,0.00031232,2]
[341345891,1730818318209,-813.15,0.00031232,2]
[341345892,1730818318218,-1674.98,0.00031232,2]
[341345893,1730818318227,-4168.65,0.00031232,2]
[341345894,1730818318237,-359.39198282,0.00031232,2]
[341345895,1730818318247,-2221.75,0.00031232,2]
[341345896,1730818318256,-722.22,0.00031232,2]
[341345897,1730818318268,-500.0,0.00031232,2]
[341345898,1730818318278,-623.01,0.00031232,2]
[341345899,1730818318287,-200.0,0.00031232,2]
[341345900,1730818318296,-728.55,0.00031232,2]
[341345901,1730818318307,-800.76,0.00031232,2]
[341345902,1730818318316,-1037.42,0.00031232,2]
[341345903,1730818318325,-500.0,0.00031232,2]
[341345904,1730818318334,-500.0,0.00031232,2]
[341345905,1730818318344,-4458.86,0.00031232,2]
[341345906,1730818318354,-6100.5,0.00031232,2]
[341345907,1730818318364,-1684.86,0.00031232,2]
[341345908,1730818318548,-500.0,0.00031232,2]
[341345909,1730818318558,-746.32,0.00031232,2]
[341345910,1730818318567,-860.55,0.00031232,2]
[341345911,1730818318577,-2800.82,0.00031232,2]
[341345912,1730818318586,-1239.54,0.00031232,2]
[341345913,1730818318596,-3438.17,0.00031232,2]
[341345914,1730818318606,-580.29,0.00031232,2]
[341345915,1730818318615,-2595.38,0.00031232,2]
[341345916,1730818318624,-2840.74,0.00031232,2]
[341345917,1730818318634,-500.0,0.00031232,2]
[341345918,1730818318643,-847.64,0.00031232,2]
[341345919,1730818318653,-3998.92,0.00031232,2]
[341345920,1730818318663,-14923.18,0.00031232,2]
[341345921,1730818318673,-1420.05,0.00031232,2]
[341345922,1730818318682,-500.0,0.00031232,2]
[341345923,1730818318692,-500.0,0.00031232,2]
[341345924,1730818318701,-7967.31,0.00031232,2]
[341345925,1730818318711,-571.26,0.00031232,2]
[341345926,1730818318720,-2786.33,0.00031232,2]
[341345927,1730818318730,-500.0,0.00031232,2]
[341345928,1730818318739,-2634.78,0.00031232,2]
[341345929,1730818318748,-500.0,0.00031232,2]
[341345930,1730818318758,-4963.13,0.00031232,2]
[341345931,1730818318767,-1373.68,0.00031232,2]
[341345932,1730818318777,-3175.23,0.00031232,2]
[341345933,1730818318787,-1485.58,0.00031232,2]
[341345934,1730818318797,-8714.97,0.00031232,2]
[341345935,1730818318806,-1668.5,0.00031232,2]
[341345936,1730818318816,-500.0,0.00031232,2]
[341345937,1730818318826,-580.17,0.00031232,2]
[341345938,1730818318835,-2394.75,0.00031232,2]
[341345939,1730818318845,-500.0,0.00031232,2]
[341345940,1730818318858,-870.25,0.00031232,2]
[341345941,1730818318867,-3537.3,0.00031232,2]
[341345942,1730818318876,-500.0,0.00031232,2]
[341345943,1730818318885,-812.1,0.00031232,2]
[341345944,1730818318894,-641.36,0.00031232,2]
[341345945,1730818318903,-519.6,0.00031232,2]
[341345946,1730818318912,-500.0,0.00031232,2]
[341345947,1730818318921,-5273.27,0.00031232,2]
[341345948,1730818318930,-1061.46,0.00031232,2]
[341345949,1730818318940,-2904.78,0.00031232,2]
[341345950,1730818318951,-500.0,0.00031232,2]
[341345951,1730818318961,-500.0,0.00031232,2]
[341345952,1730818318970,-22457.59,0.00031232,2]
[341345953,1730818318980,-500.0,0.00031232,2]
[341345954,1730818318990,-500.0,0.00031232,2]
[341345955,1730818319000,-543.17,0.00031232,2]
[341345956,1730818319010,-621.32,0.00031232,2]
[341345957,1730818319019,-3230.76,0.00031232,2]
[341345958,1730818319028,-862.17,0.00031232,2]
[341345959,1730818319038,-851.69,0.00031232,2]
[341345960,1730818319047,-517.2,0.00031232,2]
[341345961,1730818319057,-2720.75,0.00031232,2]
[341345962,1730818319066,-638.18,0.00031232,2]
[341345963,1730818319076,-947.11,0.00031232,2]
[341345964,1730818319086,-3625.83,0.00031232,2]
[341345965,1730818319095,-2072.98,0.00031232,2]
[341345966,1730818319108,-2681.47,0.00031232,2]
[341345967,1730818319117,-1864.35,0.00031232,2]
[341345968,1730818319126,-738.0,0.00031232,2]
[341345969,1730818319136,-151.0,0.00031232,7]
[341345970,1730818319146,-500.0,0.00031232,2]
[341345971,1730818319155,-879.91,0.00031232,2]
[341345972,1730818319164,-1021.21,0.00031232,2]
[341345973,1730818319174,-500.0,0.00031232,2]
[341345974,1730818319183,-500.65124,0.00031232,7]
[341345975,1730818319193,-9112.30833549,0.00031232,2]
[341345976,1730818319203,-500.0,0.00031378,120]
[341345977,1730818319213,-152.0,0.00031399,6]
[341345978,1730818319222,-748.15170336,0.0003143,4]
[341345979,1730818319232,-300.0,0.000315,2]
[341345980,1730818319242,-959.37,0.00031506,2]
[341345981,1730818319255,-642.42,0.00031506,2]
[341345982,1730818319264,-246.40892922,0.00031506,2]
[341345983,1730818319273,-616.35489897,0.00031506,2]
[341345984,1730818319283,-2202.5,0.00031506,2]
[341345985,1730818319295,-1276.84,0.00031506,2]
[341345986,1730818319304,-500.0,0.00031506,2]
[341345987,1730818319313,-500.0,0.00031506,2]
[341345988,1730818319324,-500.0,0.00031506,2]
[341345989,1730818319334,-524.62,0.00031506,2]
[341345990,1730818319344,-419.81005006,0.00031506,2]
[341345991,1730818319354,-500.0,0.00031506,2]
[341345992,1730818319364,-500.0,0.00031506,2]
[341345993,1730818319373,-1325.09,0.00031506,2]
[341345994,1730818319383,-652.16,0.00031506,2]
[341345995,1730818319392,-500.0,0.00031506,2]
[341345996,1730818319403,-1213.8,0.00031506,2]
[341345997,1730818319413,-543.65,0.00031506,2]
[341345998,1730818319423,-500.0,0.00031506,2]
[341345999,1730818319432,-710.18,0.00031506,2]
[341346000,1730818319442,-596.5,0.00031506,2]
[341346001,1730818319452,-500.0,0.00031506,2]
[341346002,1730818319462,-500.0,0.00031506,2]
[341346003,1730818319471,-222.2814663,0.00031506,2]
[341346004,1730818319481,-1031.26,0.00031506,2]
[341346005,1730818319490,-1810.02,0.00031506,2]
[341346006,1730818319500,-500.0,0.00031506,2]
[341346007,1730818319510,-1006.45,0.00031506,2]
[341346008,1730818319520,-1532.81,0.00031506,2]
[341346009,1730818319530,-500.0,0.00031506,2]
[341346010,1730818319539,-1172.46,0.00031506,2]
[341346011,1730818319550,-950.66,0.00031506,2]
[341346012,1730818319560,-566.27,0.00031506,2]
[341346013,1730818319570,-1150.28,0.00031506,2]
[341346014,1730818319579,-1053.05,0.00031506,2]
[341346015,1730818319589,-1385.21,0.00031506,2]
[341346016,1730818319599,-2449.39,0.00031506,2]
[341346017,1730818319610,-551.76,0.00031506,2]
[341346018,1730818319620,-1152.78,0.00031506,2]
[341346019,1730818319629,-505.75,0.00031506,2]
[341346020,1730818319639,-1169.16,0.00031506,2]
[341346021,1730818319648,-500.0,0.00031506,2]
[341346022,1730818319658,-151.0,0.00031506,7]
[341346023,1730818319667,-1981.15,0.00031506,2]
[341346024,1730818319676,-500.0,0.00031506,2]
[341346025,1730818319686,-1122.88,0.00031506,2]
[341346026,1730818319695,-667.7,0.00031506,2]
[341346027,1730818319704,-765.3,0.00031506,2]
[341346028,1730818319713,-1179.4,0.00031506,2]
[341346029,1730818319723,-154.405893,0.00031506,7]
[341346030,1730818319732,-745.83,0.00031506,2]
[341346031,1730818319741,-154.405893,0.00031506,7]
[341346032,1730818319750,-1138.75,0.00031506,2]
[341346033,1730818319759,-500.0,0.00031506,2]
[341346034,1730818319768,-500.0,0.00031506,2]
[341346035,1730818319777,-151.0,0.00031506,7]
[341346036,1730818319787,-1546.36,0.00031506,2]
[341346037,1730818319796,-1799.17,0.00031506,2]
[341346038,1730818319805,-393.86115397,0.00031506,2]
[341346039,1730818319815,-918.0,0.00031506,2]
[341346040,1730818319824,-882.74,0.00031506,2]
[341346041,1730818319834,-715.96,0.00031506,2]
[341346042,1730818319844,-1464.77,0.00031506,2]
[341346043,1730818319855,-500.0,0.00031506,2]
[341346044,1730818319864,-821.25,0.00031506,2]
[341346045,1730818319874,-561.05,0.00031506,2]
[341346046,1730818319883,-2488.35,0.00031506,2]
[341346047,1730818319892,-1277.43,0.00031506,2]
[341346048,1730818319902,-789.16,0.00031506,2]
[341346049,1730818319911,-1983.46,0.00031506,2]
[341346050,1730818319920,-1319.52,0.00031506,2]
[341346051,1730818319929,-770.21,0.00031506,2]
[341346052,1730818319938,-933.5,0.00031506,2]
[341346053,1730818319948,-1484.81,0.00031506,2]
[341346054,1730818319957,-769.6,0.00031506,2]
[341346055,1730818319966,-893.08,0.00031506,2]
[341346056,1730818319975,-2097.16,0.00031506,2]
[341346057,1730818319984,-706.56,0.00031506,2]
[341346058,1730818319994,-626.22,0.00031506,2]
[341346059,1730818320003,-1129.24,0.00031506,2]
[341346060,1730818320012,-1181.37,0.00031506,2]
[341346061,1730818320022,-1105.93,0.00031506,2]
[341346062,1730818320031,-1772.13,0.00031506,2]
[341346063,1730818320040,-1949.19,0.00031506,2]
[341346064,1730818320050,-500.0,0.00031506,2]
[341346065,1730818320060,-2148.83,0.00031506,2]
[341346066,1730818320069,-899.14,0.00031506,2]
[341346067,1730818320079,-500.0,0.00031506,2]
[341346068,1730818320089,-2651.17,0.00031506,2]
[341346069,1730818320099,-729.55,0.00031506,2]
[341346070,1730818320110,-891.77,0.00031506,2]
[341346071,1730818320120,-1337.92,0.00031506,2]
[341346072,1730818320130,-500.0,0.00031506,2]
[341346073,1730818320139,-2000.0,0.00031506,2]
[341346074,1730818320149,-1628.51,0.00031506,2]
[341346075,1730818320159,-1340.76,0.00031506,2]
[341346076,1730818320168,-1205.1,0.00031506,2]
[341346077,1730818320177,-671.93,0.00031506,2]
[341346078,1730818320187,-2625.61,0.00031506,2]
[341346079,1730818320197,-500.0,0.00031506,2]
[341346080,1730818320206,-1052.87,0.00031506,2]
[341346081,1730818320215,-862.96,0.00031506,2]
[341346082,1730818320225,-1134.95,0.00031506,2]
[341346083,1730818320235,-500.0,0.00031506,2]
[341346084,1730818320245,-713.84,0.00031506,2]
[341346085,1730818320255,-1190.36,0.00031506,2]
[341346086,1730818320265,-500.0,0.00031506,2]
[341346087,1730818320278,-500.0,0.00031506,2]
[341346088,1730818320288,-561.87,0.00031506,2]
[341346089,1730818320298,-1258.85,0.00031506,2]
[341346090,1730818320308,-708.32,0.00031506,2]
[341346091,1730818320319,-719.74,0.00031506,2]
[341346092,1730818320329,-530.24,0.00031506,2]
[341346093,1730818320338,-533.96,0.00031506,2]
[341346094,1730818320348,-1233.24,0.00031506,2]
[341346095,1730818320360,-1568.32,0.00031506,2]
[341346096,1730818320370,-1593.99,0.00031506,2]
[341346097,1730818320379,-500.0,0.00031506,2]
[341346098,1730818320389,-1606.8,0.00031506,2]
[341346099,1730818320399,-1114.96,0.00031506,2]
[341346100,1730818320408,-1019.34,0.00031506,2]
[341346101,1730818320418,-1345.66,0.00031506,2]
[341346102,1730818320428,-573.0,0.00031506,2]
[341346103,1730818320437,-500.0,0.00031506,2]
[341346104,1730818320446,-1308.07,0.00031506,2]
[341346105,1730818320455,-500.0,0.00031506,2]
[341346106,1730818320465,-997.78,0.00031506,2]
[341346107,1730818320475,-510.23,0.00031506,2]
[341346108,1730818320485,-619.16,0.00031506,2]
[341346109,1730818320495,-500.0,0.00031506,2]
[341346110,1730818320504,-654.14,0.00031506,2]
[341346111,1730818320514,-500.0,0.00031506,2]
[341346112,1730818320524,-500.0,0.00031506,2]
[341346113,1730818320534,-500.0,0.00031506,2]
[341346114,1730818320543,-859.18,0.00031506,2]
[341346115,1730818320552,-685.48,0.00031506,2]
[341346116,1730818320562,-500.0,0.00031506,2]
[341346117,1730818320571,-804.47,0.00031506,2]
[341346118,1730818320581,-420.40270033,0.00031506,2]
[341346119,1730818320590,-361.16211527,0.00031506,2]
[341346120,1730818320599,-1490.72,0.00031506,2]
[341346121,1730818320610,-500.0,0.00031506,2]
[341346122,1730818320620,-2778.32,0.00031506,2]
[341346123,1730818320629,-1058.06,0.00031506,2]
[341346124,1730818320638,-991.64,0.00031506,2]
[341346125,1730818320648,-512.56,0.00031506,2]
[341346126,1730818320657,-10560.64,0.00031506,2]
[341346127,1730818320666,-1286.83,0.00031506,2]
[341346128,1730818320679,-500.0,0.00031506,2]
[341346129,1730818320690,-186.71321148,0.00031506,2]
[341346130,1730818320703,-574.51,0.00031506,2]
[341346131,1730818320712,-882.25,0.00031506,2]
[341346132,1730818320722,-2024.06,0.00031506,2]
[341346133,1730818320731,-500.0,0.00031506,2]
[341346134,1730818320740,-2459.63,0.00031506,2]
[341346135,1730818320750,-522.65,0.00031506,2]
[341346136,1730818320759,-832.24,0.00031506,2]
[341346137,1730818320768,-539.9,0.00031506,2]
[341346138,1730818320778,-577.06,0.00031506,2]
[341346139,1730818320787,-528.68,0.00031506,2]
[341346140,1730818320797,-1759.85,0.00031506,2]
[341346141,1730818320806,-500.0,0.00031506,2]
[341346142,1730818320816,-1143.05,0.00031506,2]
[341346143,1730818320825,-2134.71,0.00031506,2]
[341346144,1730818320834,-1180.55,0.00031506,2]
[341346145,1730818320843,-669.82,0.00031506,2]
[341346146,1730818320853,-500.0,0.00031506,2]